fUSD/lending_fUSD_20241110
["ID","MTS","AMOUNT","RATE_DAILY","PERIOD"]
[341883773,1731267039346,-537.60916588,0.00014999,2]
[341883775,1731267039355,-500.0,0.00014999,2]
[341883777,1731267039365,-500.0,0.00014999,2]
[341883779,1731267039374,-500.0,0.00014999,2]
[341883781,1731267039383,-473.73125422,0.00014999,2]
[341883782,1731267039392,-625.0,0.00014999,2]
[341883784,1731267039401,-358.43084746,0.00014999,2]
[341883786,1731267039411,-500.0,0.00014999,2]
[341883788,1731267039422,-500.0,0.00014999,2]
[341883790,1731267039430,-500.0,0.00014999,2]
[341883792,1731267039439,-500.0,0.00014999,2]
[341883794,1731267039448,-500.0,0.00014999,2]
[341883795,1731267039458,-500.0,0.00014999,2]
[341883797,1731267039467,-511.4,0.00014999,2]
[341883799,1731267039477,-500.0,0.00014999,2]
[341883801,1731267039487,-719.8,0.00014999,2]
[341883803,1731267039496,-719.8,0.00014999,2]
[341883805,1731267039505,-719.8,0.00014999,2]
[341883807,1731267039514,-719.8,0.00014999,2]
[341883809,1731267039524,-719.8,0.00014999,2]
[341883811,1731267039533,-719.8,0.00014999,2]
[341883812,1731267039542,-719.8,0.00014999,2]
[341883814,1731267039551,-719.8,0.00014999,2]
[341883816,1731267039561,-719.8,0.00014999,2]
[341883818,1731267039570,-719.8,0.00014999,2]
[341883820,1731267039580,-719.8,0.00014999,2]
[341883822,1731267039589,-719.8,0.00014999,2]
[341883824,1731267039598,-719.8,0.00014999,2]
[341883825,1731267039607,-719.8,0.00014999,2]
[341883827,1731267039617,-719.8,0.00014999,2]
[341883829,1731267039626,-719.8,0.00014999,2]
[341883831,1731267039635,-719.8,0.00014999,2]
[341883833,1731267039644,-719.8,0.00014999,2]
[341883835,1731267039654,-719.8,0.00014999,2]
[341883837,1731267039663,-719.8,0.00014999,2]
[341883839,1731267039675,-719.8,0.00014999,2]
[341883841,1731267039684,-719.8,0.00014999,2]
[341883843,1731267039693,-720.01616194,0.00014999,2]
[341883844,1731267039703,-1028.82,0.00014999,2]
[341883845,1731267039711,-1028.82,0.00014999,2]
[341883846,1731267039721,-1028.82,0.00014999,2]
[341883847,1731267039730,-1028.82,0.00014999,2]
[341883848,1731267039739,-1028.82,0.00014999,2]
[341883849,1731267039748,-1028.82,0.00014999,2]
[341883850,1731267039758,-1028.82,0.00014999,2]
[341883851,1731267039767,-1028.82,0.00014999,2]
[341883852,1731267039776,-1028.82,0.00014999,2]
[341883853,1731267039785,-1028.82,0.00014999,2]
[341883854,1731267039795,-1028.82,0.00014999,2]
[341883855,1731267039804,-1028.82,0.00014999,2]
[341883856,1731267039813,-547.5,0.00014999,2]
[341883857,1731267039822,-547.5,0.00014999,2]
[341883858,1731267039831,-547.5,0.00014999,2]
[341883859,1731267039841,-547.5,0.00014999,2]
[341883860,1731267039850,-547.5,0.00014999,2]
[341883861,1731267039860,-547.5,0.00014999,2]
[341883862,1731267039869,-547.5,0.00014999,2]
[341883863,1731267039879,-547.5,0.00014999,2]
[341883865,1731267039888,-547.5,0.00014999,2]
[341883867,1731267039898,-547.5,0.00014999,2]
[341883869,1731267039907,-547.5,0.00014999,2]
[341883871,1731267039916,-547.5,0.00014999,2]
[341883873,1731267039928,-547.5,0.00014999,2]
[341883875,1731267039937,-547.5,0.00014999,2]
[341883877,1731267039947,-547.5,0.00014999,2]
[341883878,1731267039956,-547.5,0.00014999,2]
[341883880,1731267039966,-547.5,0.00014999,2]
[341883883,1731267039976,-547.5,0.00014999,2]
[341883885,1731267039986,-547.5,0.00014999,2]
[341883886,1731267039996,-547.5,0.00014999,2]
[341883888,1731267040006,-547.5,0.00014999,2]
[341883891,1731267040017,-547.5,0.00014999,2]
[341883892,1731267040030,-547.5,0.00014999,2]
[341883894,1731267040039,-547.5,0.00014999,2]
[341883896,1731267040050,-500.0,0.00014999,2]
[341883899,1731267040059,-500.0,0.00014999,2]
[341883901,1731267040068,-500.0,0.00014999,2]
[341883902,1731267040078,-500.0,0.00014999,2]
[341883904,1731267040087,-500.0,0.00014999,2]
[341883907,1731267040096,-500.0,0.00014999,2]
[341883909,1731267040106,-500.0,0.00014999,2]
[341883911,1731267040117,-500.0,0.00014999,2]
[341883912,1731267040130,-500.0,0.00014999,2]
[341883915,1731267040140,-400.57488151,0.00014999,2]
[341883916,1731267040150,-500.0,0.00014999,2]
[341883918,1731267040160,-500.0,0.00014999,2]
[341883920,1731267040170,-500.0,0.00014999,2]
[341883923,1731267040184,-500.0,0.00014999,2]
[341883926,1731267040194,-500.0,0.00014999,2]
[341883930,1731267040206,-500.0,0.00014999,2]
[341883933,1731267040216,-500.0,0.00014999,2]
[341883936,1731267040226,-500.0,0.00014999,2]
[341883937,1731267040236,-500.0,0.00014999,2]
[341883940,1731267040245,-500.0,0.00014999,2]
[341883942,1731267040256,-500.0,0.00014999,2]
[341883943,1731267040266,-391.54407894,0.00014999,2]
[341883946,1731267040276,-487.64,0.00014999,2]
[341883947,1731267040285,-546.64,0.00014999,2]
[341883950,1731267040295,-546.64,0.00014999,2]
[341883952,1731267040304,-500.0,0.00014999,2]
[341883954,1731267040314,-546.64,0.00014999,2]
[341883956,1731267040323,-546.64,0.00014999,2]
[341883957,1731267040332,-546.64,0.00014999,2]
[341883959,1731267040341,-500.0,0.00014999,2]
[341883961,1731267040351,-546.64,0.00014999,2]
[341883963,1731267040360,-500.0,0.00014999,2]
[341883966,1731267040369,-546.64,0.00014999,2]
[341883967,1731267040379,-500.0,0.00014999,2]
[341883969,1731267040388,-546.64,0.00014999,2]
[341883971,1731267040398,-500.0,0.00014999,2]
[341883973,1731267040407,-546.64,0.00014999,2]
[341883975,1731267040417,-500.0,0.00014999,2]
[341883977,1731267040431,-546.64,0.00014999,2]
[341883979,1731267040440,-412.35214387,0.00014999,2]
[341883981,1731267040450,-546.64,0.00014999,2]
[341883983,1731267040460,-546.64,0.00014999,2]
[341883985,1731267040470,-546.64,0.00014999,2]
[341883987,1731267040479,-546.64,0.00014999,2]
[341883990,1731267040489,-546.64,0.00014999,2]
[341883992,1731267040499,-546.64,0.00014999,2]
[341883994,1731267040509,-546.64,0.00014999,2]
[341883996,1731267040518,-546.64,0.00014999,2]
[341883998,1731267040528,-500.0,0.00014999,2]
[341884000,1731267040538,-546.64,0.00014999,2]
[341884002,1731267040547,-500.0,0.00014999,2]
[341884004,1731267040557,-546.64,0.00014999,2]
[341884006,1731267040567,-500.0,0.00014999,2]
[341884008,1731267040577,-546.64,0.00014999,2]
[341884010,1731267040587,-546.64,0.00014999,2]
[341884012,1731267040596,-546.64,0.00014999,2]
[341884014,1731267040606,-500.0,0.00014999,2]
[341884016,1731267040615,-546.68229748,0.00014999,2]
[341884018,1731267040625,-500.0,0.00014999,2]
[341884020,1731267040635,-500.0,0.00014999,2]
[341884022,1731267040644,-504.27352209,0.00014999,2]
[341884024,1731267040653,-151.0,0.00014999,2]
[341884026,1731267040662,-500.0,0.00014999,2]
[341884028,1731267040675,-500.0,0.00014999,2]
[341884030,1731267040685,-500.0,0.00014999,2]
[341884032,1731267040694,-500.0,0.00014999,2]
[341884034,1731267040704,-500.0,0.00014999,2]
[341884036,1731267040713,-500.0,0.00014999,2]
[341884038,1731267040722,-500.0,0.00014999,2]
[341884040,1731267040732,-500.0,0.00014999,2]
[341884042,1731267040741,-151.0,0.00014999,2]
[341884044,1731267040750,-151.0,0.00014999,2]
[341884046,1731267040760,-151.0,0.00014999,2]
[341884048,1731267040770,-2395.640035,0.00014999,2]
[341884050,1731267040779,-2395.640035,0.00014999,2]
[341884052,1731267040789,-500.0,0.00014999,2]
[341884054,1731267040798,-500.0,0.00014999,2]
[341884056,1731267040807,-500.0,0.00014999,2]
[341884058,1731267040816,-500.0,0.00014999,2]
[341884060,1731267040826,-500.0,0.00014999,2]
[341884062,1731267040834,-370.63983987,0.00014999,2]
[341884064,1731267040844,-964.94,0.00014999,2]
[341884066,1731267040853,-964.94,0.00014999,2]
[341884068,1731267040863,-964.94,0.00014999,2]
[341884070,1731267040872,-964.94,0.00014999,2]
[341884072,1731267040881,-964.94,0.00014999,2]
[341884074,1731267040891,-964.94,0.00014999,2]
[341884076,1731267040900,-964.94,0.00014999,2]
[341884078,1731267040909,-964.94,0.00014999,2]
[341884080,1731267040918,-964.94,0.00014999,2]
[341884082,1731267040930,-964.94,0.00014999,2]
[341884084,1731267040939,-964.94,0.00014999,2]
[341884086,1731267040948,-964.94,0.00014999,2]
[341884088,1731267040957,-964.94,0.00014999,2]
[341884090,1731267040966,-964.94,0.00014999,2]
[341884092,1731267040975,-964.94,0.00014999,2]
[341884094,1731267040985,-964.94,0.00014999,2]
[341884096,1731267040995,-964.94,0.00014999,2]
[341884098,1731267041004,-964.94,0.00014999,2]
[341884100,1731267041013,-964.94,0.00014999,2]
[341884102,1731267041022,-964.94,0.00014999,2]
[341884104,1731267041031,-964.94,0.00014999,2]
[341884106,1731267041040,-964.94,0.00014999,2]
[341884108,1731267041049,-964.94,0.00014999,2]
[341884110,1731267041058,-965.11706753,0.00014999,2]
[341884112,1731267041067,-500.0,0.00014999,2]
[341884114,1731267041076,-500.0,0.00014999,2]
[341884116,1731267041086,-500.0,0.00014999,2]
[341884118,1731267041095,-500.0,0.00014999,2]
[341884120,1731267041104,-500.0,0.00014999,2]
[341884122,1731267041114,-500.0,0.00014999,2]
[341884124,1731267041126,-500.0,0.00014999,2]
[341884126,1731267041135,-420.99775779,0.00014999,2]
[341884128,1731267041145,-510.92891126,0.00014999,2]
[341884130,1731267041155,-182.783262,0.00014999,2]
[341884132,1731267041164,-915.93,0.00014999,2]
[341884134,1731267041176,-915.93,0.00014999,2]
[341884136,1731267041186,-915.93,0.00014999,2]
[341884138,1731267041197,-915.93,0.00014999,2]
[341884140,1731267041206,-915.93,0.00014999,2]
[341884142,1731267041216,-915.93,0.00014999,2]
[341884144,1731267041225,-182.783262,0.00014999,2]
[341884146,1731267041235,-915.93,0.00014999,2]
[341884152,1731267041285,-915.93,0.00014999,2]
[341884154,1731267041294,-915.93,0.00014999,2]
[341884156,1731267041303,-915.93,0.00014999,2]
[341884158,1731267041312,-915.93,0.00014999,2]
[341884160,1731267041321,-915.93,0.00014999,2]
[341884162,1731267041330,-915.93,0.00014999,2]
[341884164,1731267041338,-915.93,0.00014999,2]
[341884166,1731267041348,-915.93,0.00014999,2]
[341884168,1731267041357,-915.93,0.00014999,2]
[341884170,1731267041366,-915.93,0.00014999,2]
[341884172,1731267041375,-915.93,0.00014999,2]
[341884174,1731267041384,-915.93,0.00014999,2]
[341884176,1731267041393,-915.93,0.00014999,2]
[341884178,1731267041403,-915.93,0.00014999,2]
[341884180,1731267041412,-915.93,0.00014999,2]
[341884182,1731267041424,-915.93,0.00014999,2]
[341884184,1731267041433,-915.98645972,0.00014999,2]
[341884186,1731267041443,-151.0,0.00014999,2]
[341884188,1731267041452,-526.52,0.00014999,2]
[341884190,1731267041461,-152.25,0.00014999,2]
[341884192,1731267041470,-500.0,0.00014999,2]
[341884194,1731267041480,-500.0,0.00014999,2]
[341884196,1731267041490,-500.0,0.00014999,2]
[341884198,1731267041499,-500.0,0.00014999,2]
[341884200,1731267041508,-500.0,0.00014999,2]
[341884202,1731267041518,-608.72982425,0.00014999,2]
[341884204,1731267041527,-1080.02,0.00014999,2]
[341884206,1731267041536,-1080.02,0.00014999,2]
[341884208,1731267041546,-1080.02,0.00014999,2]
[341884210,1731267041555,-1080.02,0.00014999,2]
[341884212,1731267041564,-1080.02,0.00014999,2]
[341884214,1731267041574,-1080.02,0.00014999,2]
[341884216,1731267041584,-1080.02,0.00014999,2]
[341884218,1731267041593,-500.0,0.00014999,2]
[341884220,1731267041601,-1080.02,0.00014999,2]
[341884222,1731267041611,-500.0,0.00014999,2]
[341884223,1731267041620,-1080.02,0.00014999,2]
[341884226,1731267041629,-511.72348072,0.00014999,2]
[341884228,1731267041638,-1080.02,0.00014999,2]
[341884229,1731267041647,-1080.02,0.00014999,2]
[341884231,1731267041656,-1080.02,0.00014999,2]
[341884233,1731267041666,-1080.02,0.00014999,2]
[341884235,1731267041677,-1080.02,0.00014999,2]
[341884237,1731267041686,-1080.02,0.00014999,2]
[341884239,1731267041695,-1080.02,0.00014999,2]
[341884241,1731267041704,-1080.02,0.00014999,2]
[341884243,1731267041713,-1080.02,0.00014999,2]
[341884245,1731267041722,-1080.02,0.00014999,2]
[341884247,1731267041732,-284.96096121,0.00014999,2]
[341884249,1731267041741,-1080.02,0.00014999,2]
[341884251,1731267041750,-1080.02,0.00014999,2]
[341884253,1731267041759,-1080.02,0.00014999,2]
[341884255,1731267041768,-1080.02,0.00014999,2]
[341884257,1731267041778,-1080.24279421,0.00014999,2]
[341884259,1731267041787,-500.0,0.00014999,2]
[341884261,1731267041796,-500.0,0.00014999,2]
[341884263,1731267041807,-500.0,0.00014999,2]
[341884265,1731267041816,-500.0,0.00014999,2]
[341884267,1731267041826,-151.0,0.00014999,2]
[341884269,1731267041835,-500.0,0.00014999,2]
[341884271,1731267041844,-500.0,0.00014999,2]
[341884273,1731267041852,-500.0,0.00014999,2]
[341884275,1731267041861,-500.0,0.00014999,2]
[341884277,1731267041870,-500.0,0.00014999,2]
[341884279,1731267041879,-500.0,0.00014999,2]
[341884281,1731267041888,-500.0,0.00014999,2]
[341884283,1731267041898,-500.0,0.00014999,2]
[341884285,1731267041906,-500.0,0.00014999,2]
[341884287,1731267041916,-500.0,0.00014999,2]
[341884289,1731267041926,-500.0,0.00014999,2]
[341884291,1731267041935,-500.0,0.00014999,2]
[341884293,1731267041945,-500.0,0.00014999,2]
[341884295,1731267041954,-500.0,0.00014999,2]
[341884297,1731267041963,-500.0,0.00014999,2]
[341884299,1731267041972,-500.0,0.00014999,2]
[341884301,1731267041981,-151.0,0.00014999,2]
[341884303,1731267041990,-500.0,0.00014999,2]
[341884305,1731267042000,-500.0,0.00014999,2]
[341884307,1731267042010,-232.27318282,0.00014999,2]
[341884309,1731267042019,-491.649993,0.00014999,2]
[341884311,1731267042029,-491.649993,0.00014999,2]
[341884313,1731267042038,-500.0,0.00014999,2]
[341884315,1731267042047,-500.0,0.00014999,2]
[341884317,1731267042055,-228.91,0.00014999,2]
[341884319,1731267042065,-3814487.52511553,0.00015,2]
[341884344,1731267042294,-6049.10004603,0.00015,2]
[341884347,1731267042305,-22484.7,0.00015,2]
[341884349,1731267042316,-1052.5,0.00015,2]
[341884386,1731267042659,-179.036,0.0001392,2]
[341884388,1731267042669,-150.0,0.00014287,2]
[341884390,1731267042681,-195.30822007,0.00014899,2]
[341884392,1731267042690,-13471.37463573,0.00014999,2]
[341884394,1731267042703,-7571.53127679,0.00014999,2]
[341884396,1731267042714,-2085.15207402,0.00014999,2]
[341884399,1731267042726,-1008.43186122,0.00014999,2]
[341884402,1731267042744,-1869.11977893,0.00014999,2]
[341884407,1731267042789,-12935.313,0.0001392,2]
[341884409,1731267042798,-677.15323337,0.00014999,2]
[341884411,1731267042808,-1248.6441728,0.00014999,2]
[341884423,1731267042908,-776.7171583,0.00014999,2]
[341884425,1731267042919,-2846.1830121,0.00014999,2]
[341884427,1731267042931,-9569.19381361,0.00014999,2]
[341884430,1731267042942,-1000.0,0.00014999,2]
[341884436,1731267042992,-351.93134747,0.00014998,2]
[341884438,1731267043001,-699.76865258,0.00014999,2]
[341884440,1731267043011,-5390.21091421,0.00014999,2]
[341884441,1731267043023,-5602.7959869,0.00014999,2]
[341884443,1731267043034,-889.611723,0.00014999,2]
[341884445,1731267043044,-1015.75187423,0.00014999,2]
[341884446,1731267043055,-330.80435618,0.00014999,2]
[341884447,1731267043066,-303.4496346,0.00014999,2]
[341884448,1731267043076,-1045.15744921,0.00014999,2]
[341884449,1731267043087,-332.69350011,0.00014999,2]
[341884450,1731267043103,-4461.00142383,0.00014999,2]
[341884451,1731267043114,-295.2679983,0.00014999,2]
[341884452,1731267043126,-13426.86489626,0.00014999,2]
[341884454,1731267043137,-916.90999998,0.00014999,2]
[341884456,1731267043148,-528.255,0.00014999,2]
[341884458,1731267043159,-432.18335078,0.00014999,2]
[341884467,1731267043226,150.0,0.000131,5]
[341884509,1731267043616,-17852.67104669,0.00014999,2]
[341884511,1731267043627,-38979.35698766,0.00014999,2]
[341884513,1731267043638,-6576.39798087,0.00014999,2]
[341884515,1731267043649,-5436.64083055,0.00014999,2]
[341884518,1731267043660,-5378.74583998,0.00014999,2]
[341884520,1731267043671,-1053.41410357,0.00014999,2]
[341884523,1731267043692,-2998.6999022,0.00014999,2]
[341884525,1731267043703,-2218.43404473,0.00014999,2]
[341884527,1731267043714,-4064.51443784,0.00014999,2]
[341884529,1731267043725,-3241.67,0.00014999,2]
[341884532,1731267043736,-1387.70515,0.00014999,2]
[341884547,1731267043873,-378.40778727,0.00014999,2]
[341884549,1731267043884,-16090.82494547,0.00014999,2]
[341884552,1731267043896,-7882.01473573,0.00014999,2]
[341884554,1731267043907,-80489.99999999,0.00014999,2]
[341884556,1731267043917,-851.70976804,0.00014999,2]
[341884567,1731267044017,-854.56574509,0.00014999,2]
[341884759,1731267046349,-1990.0,0.00014324,2]
[341884760,1731267046359,-5770.87226206,0.00014999,2]
[341884761,1731267046371,-393.48420634,0.00014999,2]
[341884762,1731267046416,-8040.52555092,0.00014999,2]
[341884763,1731267046428,-1042.90476782,0.00014999,2]
[341884764,1731267046439,-1180.4135864,0.00014999,2]
[341884769,1731267049777,-452446.82986453,0.00014999,2]
[341884770,1731267049790,-833.85,0.00014999,2]
[341884771,1731267049801,-7124.02110162,0.00014999,2]
[341884772,1731267049820,-343.04839385,0.00014999,2]
[341884773,1731267049835,-4057.29531512,0.00014999,2]
[341884774,1731267049846,-1247.98589308,0.00014999,2]
[341884775,1731267049869,-3523.33211839,0.00014999,2]
[341884776,1731267083362,366720.0,0.00027,60]
[341884781,1731267251630,960.66,0.00012054,2]
[341884782,1731267315575,3030.44,0.00014643,7]
[341884815,1731267984677,912.62,0.00011734,2]
[341884817,1731268041151,-316.83904557,0.00013,2]
[341884818,1731268042120,-261.79981045,0.00013,2]
[341884819,1731268042146,-594.567063,0.00013497,2]
[341884820,1731268042169,-640.8334,0.00013597,2]
[341884821,1731268042191,-358.63,0.00013639,2]
[341884822,1731268042214,-300.0,0.00013666,2]
[341884823,1731268042238,-2086.04534484,0.00013667,2]
[341884839,1731268232453,-1000.0,0.00013436,2]
[341884840,1731268232464,-2286.05273902,0.00013571,2]
[341884841,1731268232474,-154.3,0.00013633,2]
[341884842,1731268232487,-154.3,0.00013647,2]
[341884843,1731268232496,-154.3,0.0001366,2]
[341884844,1731268232506,-300.0,0.00013666,2]
[341884845,1731268232517,-21813.95465516,0.00013667,2]
[341884846,1731268232526,-150.0,0.00013671,2]
[341884847,1731268232537,-250.0,0.00013672,2]
[341884848,1731268232546,-154.3,0.00013674,2]
[341884849,1731268232555,-154.3,0.00013688,2]
[341884850,1731268232564,-150.0,0.00013697,2]
[341884851,1731268232574,-500.0,0.00013698,2]
[341884852,1731268232584,-500.0,0.00013698,2]
[341884853,1731268232594,-500.0,0.00013698,2]
[341884854,1731268232603,-500.0,0.00013698,2]
[341884855,1731268232612,-500.0,0.00013698,2]
[341884856,1731268232621,-500.0,0.00013698,2]
[341884857,1731268232630,-500.0,0.00013698,2]
[341884858,1731268232639,-500.0,0.00013698,2]
[341884859,1731268232649,-500.0,0.00013698,2]
[341884860,1731268232658,-500.0,0.00013698,2]
[341884861,1731268232667,-505.89758305,0.00013698,2]
[341884862,1731268232676,-988.93,0.00013698,2]
[341884863,1731268232685,-505.73501864,0.00013698,2]
[341884864,1731268232694,-500.0,0.00013698,2]
[341884865,1731268232703,-310.3132001,0.00013698,2]
[341884866,1731268232713,-500.0,0.00013698,2]
[341884867,1731268232722,-644.86272565,0.00013698,2]
[341884868,1731268232733,-500.0,0.00013698,2]
[341884869,1731268232742,-500.0,0.00013698,2]
[341884870,1731268232751,-500.0,0.00013698,2]
[341884871,1731268232761,-500.0,0.00013698,2]
[341884872,1731268232770,-262.5620645,0.00013698,2]
[341884873,1731268232779,-500.0,0.00013698,2]
[341884874,1731268232788,-500.0,0.00013698,2]
[341884875,1731268232797,-500.0,0.00013698,2]
[341884876,1731268232806,-500.0,0.00013698,2]
[341884877,1731268232816,-500.0,0.00013698,2]
[341884878,1731268232826,-500.0,0.00013698,2]
[341884879,1731268232836,-500.0,0.00013698,2]
[341884880,1731268232846,-510.33,0.00013698,2]
[341884881,1731268232855,-500.0,0.00013698,2]
[341884882,1731268232864,-799.69,0.00013698,2]
[341884883,1731268232874,-527.62,0.00013698,2]
[341884884,1731268232883,-1176.18,0.00013698,2]
[341884885,1731268232892,-500.0,0.00013698,2]
[341884886,1731268232901,-2059.55,0.00013698,2]
[341884887,1731268232911,-500.0,0.00013698,2]
[341884888,1731268232920,-500.0,0.00013698,2]
[341884889,1731268232929,-961.17,0.00013698,2]
[341884890,1731268232938,-500.0,0.00013698,2]
[341884891,1731268232947,-500.0,0.00013698,2]
[341884892,1731268232957,-500.0,0.00013698,2]
[341884893,1731268232966,-500.0,0.00013698,2]
[341884894,1731268232975,-500.0,0.00013698,2]
[341884895,1731268232987,-150.0,0.00013698,2]
[341884896,1731268232997,-500.0,0.00013698,2]
[341884897,1731268233006,-500.0,0.00013698,2]
[341884898,1731268233015,-379.41977369,0.00013698,2]
[341884899,1731268233024,-500.0,0.00013698,2]
[341884900,1731268233034,-500.0,0.00013698,2]
[341884901,1731268233043,-500.0,0.00013698,2]
[341884902,1731268233053,-1649.9,0.00013699,2]
[341884903,1731268233062,-154.3,0.00013701,2]
[341884904,1731268233071,-154.3,0.00013715,2]
[341884905,1731268233080,-154.3,0.00013728,2]
[341884906,1731268233089,-154.3,0.00013742,2]
[341884907,1731268233098,-152.25,0.00013746,2]
[341884908,1731268233108,-154.3,0.00013756,2]
[341884909,1731268233117,-154.3,0.00013769,2]
[341884910,1731268233126,-200.0,0.00013773,2]
[341884911,1731268233135,-658.0,0.00013794,2]
[341884912,1731268233145,-3580.45,0.00013794,2]
[341884913,1731268233154,-6589.3,0.00013794,2]
[341884914,1731268233164,-250.0,0.00013841,2]
[341884915,1731268233172,-160.63,0.00013892,2]
[341884916,1731268233181,-477.15,0.0001393,2]
[341884917,1731268233190,-8058.0785746,0.00013953,2]
[341884918,1731268233199,-912.62,0.00013998,2]
[341884919,1731268233208,-1990.0,0.00014324,2]
[341884920,1731268233217,-283.313,0.00014324,2]
[341884921,1731268233226,-1171.388,0.00014324,2]
[341884922,1731268233238,-2910.0,0.00014324,2]
[341884923,1731268233248,-814.0,0.00014324,2]
[341884924,1731268233257,-1213.906,0.00014324,2]
[341884925,1731268233267,-150.0,0.00014324,2]
[341884926,1731268233276,-150.0,0.00014324,2]
[341884927,1731268233285,-150.0,0.00014324,2]
[341884928,1731268233294,-1091.0,0.00014324,2]
[341884929,1731268233303,-426.22825879,0.00014645,2]
[341884930,1731268233312,-152.25,0.00014662,2]
[341884931,1731268233321,-1867.0,0.000147,2]
[341884932,1731268233330,-500.0,0.00014724,2]
[341884933,1731268233339,-500.0,0.00014724,2]
[341884934,1731268233349,-500.0,0.00014724,2]
[341884935,1731268233358,-500.0,0.00014724,2]
[341884936,1731268233367,-500.0,0.00014724,2]
[341884937,1731268233376,-500.0,0.00014724,2]
[341884938,1731268233386,-988.93,0.00014724,2]
[341884939,1731268233395,-627.84178059,0.00014724,2]
[341884940,1731268233405,-500.0,0.00014724,2]
[341884941,1731268233414,-228.7382814,0.00014724,2]
[341884942,1731268233423,-500.0,0.00014724,2]
[341884943,1731268233432,-500.0,0.00014724,2]
[341884944,1731268233441,-500.0,0.00014724,2]
[341884945,1731268233450,-500.0,0.00014724,2]
[341884946,1731268233460,-500.0,0.00014724,2]
[341884947,1731268233469,-500.0,0.00014724,2]
[341884948,1731268233478,-510.33,0.00014724,2]
[341884949,1731268233496,-500.0,0.00014724,2]
[341884950,1731268233506,-799.69,0.00014724,2]
[341884951,1731268233515,-527.62,0.00014724,2]
[341884952,1731268233524,-1176.18,0.00014724,2]
[341884953,1731268233534,-500.0,0.00014724,2]
[341884954,1731268233543,-2059.55,0.00014724,2]
[341884955,1731268233552,-500.0,0.00014724,2]
[341884956,1731268233562,-511.4364647,0.00014724,2]
[341884957,1731268233573,-961.17,0.00014724,2]
[341884958,1731268233582,-500.0,0.00014724,2]
[341884959,1731268233592,-500.0,0.00014724,2]
[341884960,1731268233601,-500.0,0.00014724,2]
[341884961,1731268233610,-500.0,0.00014724,2]
[341884962,1731268233620,-500.0,0.00014724,2]
[341884963,1731268233630,-150.0,0.00014724,2]
[341884964,1731268233639,-500.0,0.00014724,2]
[341884965,1731268233649,-484.93304424,0.00014724,2]
[341884966,1731268233658,-500.0,0.00014724,2]
[341884967,1731268233667,-500.0,0.00014724,2]
[341884968,1731268233677,-500.0,0.00014724,2]
[341884969,1731268233687,-1334.37925204,0.00014798,2]
[341884970,1731268233696,-659.5574,0.00014798,2]
[341884971,1731268233706,-500.0,0.00014799,2]
[341884972,1731268233716,-500.0,0.00014799,2]
[341884973,1731268233725,-500.0,0.00014799,2]
[341884974,1731268233738,-500.0,0.00014799,2]
[341884975,1731268233748,-4771.06368225,0.000148,2]
[341884976,1731268233758,-1334.37925202,0.00014809,2]
[341884977,1731268233768,-255.0,0.0001482,2]
[341884978,1731268233777,-1334.37925202,0.00014821,2]
[341884979,1731268233787,-1334.37925202,0.00014832,2]
[341884980,1731268233796,-1334.37925202,0.00014843,2]